fUSD/lending_fUSD_20250504
["ID","MTS","AMOUNT","RATE_DAILY","PERIOD"]
[359807309,1746355853679,-160.43340472,0.00019873,2]
[359807311,1746355853688,-500.0,0.00019873,2]
[359807313,1746355853698,-500.0,0.00019873,2]
[359807315,1746355853707,-500.41356724,0.00019873,2]
[359807317,1746355853716,-500.0,0.00019873,2]
[359807319,1746355853725,-500.0,0.00019873,2]
[359807321,1746355853734,-500.0,0.00019873,2]
[359807323,1746355853743,-500.0,0.00019873,2]
[359807324,1746355853752,-500.67768756,0.00019873,2]
[359807326,1746355853762,-502.07702519,0.00019873,2]
[359807328,1746355853771,-500.0,0.00019873,2]
[359807330,1746355853780,-501.17443641,0.00019873,2]
[359807332,1746355853789,-501.6743923,0.00019873,2]
[359807334,1746355853799,-500.27981872,0.00019873,2]
[359807336,1746355853808,-508.32666158,0.00019873,2]
[359807338,1746355853817,-500.0,0.00019873,2]
[359807340,1746355853826,-331.03061073,0.00019873,2]
[359807342,1746355853835,-500.72242443,0.00019873,2]
[359807344,1746355853844,-503.88474273,0.00019873,2]
[359807346,1746355853853,-160.5244568,0.00019873,2]
[359807348,1746355853862,-315.71092533,0.00019873,2]
[359807350,1746355853871,-150.0,0.00019873,2]
[359807352,1746355853880,-12500.0,0.00019874,2]
[359807354,1746355853890,-151.0,0.00019874,2]
[359807356,1746355853903,-172.01774,0.00019874,2]
[359807358,1746355853912,-151.0,0.00019874,2]
[359807360,1746355853921,-151.0,0.00019874,2]
[359807362,1746355853931,-272.53932395,0.00019874,2]
[359807364,1746355853942,-150.0,0.00019877,2]
[359807366,1746355853951,-150.0,0.00019878,2]
[359807368,1746355853960,-887.45485732,0.00019878,2]
[359807370,1746355853969,-182.598,0.00019879,2]
[359807371,1746355853978,-1580.873,0.00019879,2]
[359807373,1746355853988,-220.02322943,0.00019882,2]
[359807375,1746355853998,-150.0,0.00019882,2]
[359807377,1746355854007,-12500.0,0.00019882,2]
[359807379,1746355854017,-150.0,0.00019885,2]
[359807381,1746355854026,-150.0,0.00019885,2]
[359807383,1746355854035,-500.0,0.00019889,2]
[359807385,1746355854044,-500.0,0.00019889,2]
[359807387,1746355854054,-151.0,0.0001989,2]
[359807389,1746355854064,-151.238303,0.0001989,2]
[359807391,1746355854073,-204.04833,0.0001989,2]
[359807393,1746355854083,-200.0,0.0001989,2]
[359807395,1746355854092,-450.0,0.0001989,2]
[359807397,1746355854102,-278.43015149,0.0001989,2]
[359807399,1746355854110,-178.03870172,0.0001989,2]
[359807401,1746355854119,-353.29794088,0.0001989,2]
[359807403,1746355854128,-450.0,0.0001989,2]
[359807405,1746355854137,-450.0,0.0001989,2]
[359807407,1746355854146,-450.0,0.0001989,2]
[359807409,1746355854155,-450.0,0.0001989,2]
[359807411,1746355854164,-200.0,0.0001989,2]
[359807413,1746355854174,-450.0,0.0001989,2]
[359807415,1746355854184,-450.0,0.0001989,2]
[359807417,1746355854194,-450.0,0.0001989,2]
[359807418,1746355854203,-450.0,0.0001989,2]
[359807421,1746355854214,-596.15,0.0001989,2]
[359807422,1746355854223,-450.0,0.0001989,2]
[359807424,1746355854232,-450.0,0.0001989,2]
[359807426,1746355854242,-450.0,0.0001989,2]
[359807428,1746355854251,-450.0,0.0001989,2]
[359807430,1746355854260,-450.0,0.0001989,2]
[359807432,1746355854270,-595.72,0.0001989,2]
[359807434,1746355854279,-632.67,0.0001989,2]
[359807436,1746355854289,-450.0,0.0001989,2]
[359807438,1746355854298,-608.95,0.0001989,2]
[359807440,1746355854307,-450.0,0.0001989,2]
[359807442,1746355854316,-858.63,0.0001989,2]
[359807444,1746355854326,-150.0,0.0001989,2]
[359807445,1746355854335,-450.0,0.0001989,2]
[359807447,1746355854345,-498.02,0.0001989,2]
[359807449,1746355854355,-450.0,0.0001989,2]
[359807451,1746355854365,-450.0,0.0001989,2]
[359807453,1746355854374,-450.0,0.0001989,2]
[359807455,1746355854384,-450.0,0.0001989,2]
[359807457,1746355854393,-450.0,0.0001989,2]
[359807459,1746355854402,-496.42,0.0001989,2]
[359807461,1746355854411,-450.0,0.0001989,2]
[359807463,1746355854421,-450.0,0.0001989,2]
[359807464,1746355854430,-1603.17,0.0001989,2]
[359807466,1746355854440,-450.0,0.0001989,2]
[359807468,1746355854451,-788.57,0.0001989,2]
[359807470,1746355854461,-1371.55,0.0001989,2]
[359807472,1746355854471,-1571.93,0.0001989,2]
[359807474,1746355854479,-450.0,0.0001989,2]
[359807476,1746355854490,-719.89,0.0001989,2]
[359807478,1746355854500,-630.28,0.0001989,2]
[359807480,1746355854509,-450.0,0.0001989,2]
[359807482,1746355854518,-450.0,0.0001989,2]
[359807484,1746355854527,-450.0,0.0001989,2]
[359807486,1746355854537,-450.0,0.0001989,2]
[359807488,1746355854546,-513.59290841,0.0001989,2]
[359807490,1746355854555,-2725.93,0.0001989,2]
[359807492,1746355854564,-950.85,0.0001989,2]
[359807494,1746355854573,-450.0,0.0001989,2]
[359807496,1746355854583,-450.0,0.0001989,2]
[359807498,1746355854593,-993.5,0.0001989,2]
[359807500,1746355854602,-450.0,0.0001989,2]
[359807502,1746355854611,-273.85735025,0.0001989,2]
[359807504,1746355854620,-450.0,0.0001989,2]
[359807505,1746355854629,-721.07,0.0001989,2]
[359807508,1746355854640,-595.14,0.0001989,2]
[359807510,1746355854651,-450.0,0.0001989,2]
[359807512,1746355854660,-450.0,0.0001989,2]
[359807514,1746355854669,-581.49,0.0001989,2]
[359807516,1746355854679,-450.0,0.0001989,2]
[359807518,1746355854689,-357.94631648,0.0001989,2]
[359807519,1746355854698,-166.91972549,0.0001989,23]
[359807521,1746355854707,-2810.17,0.0001989,2]
[359807523,1746355854718,-450.0,0.0001989,2]
[359807526,1746355854728,-450.0,0.0001989,2]
[359807528,1746355854739,-1172.8,0.0001989,2]
[359807529,1746355854749,-634.87,0.0001989,2]
[359807531,1746355854759,-450.0,0.0001989,2]
[359807533,1746355854769,-2929.23,0.0001989,2]
[359807535,1746355854779,-450.0,0.0001989,2]
[359807538,1746355854791,-1939.86,0.0001989,2]
[359807539,1746355854801,-450.0,0.0001989,2]
[359807542,1746355854812,-450.0,0.0001989,2]
[359807544,1746355854822,-450.0,0.0001989,2]
[359807546,1746355854833,-916.0,0.0001989,2]
[359807547,1746355854844,-450.0,0.0001989,2]
[359807549,1746355854854,-618.36,0.0001989,2]
[359807552,1746355854864,-450.0,0.0001989,2]
[359807553,1746355854873,-450.0,0.0001989,2]
[359807555,1746355854883,-2335.21,0.0001989,2]
[359807557,1746355854895,-450.0,0.0001989,2]
[359807559,1746355854905,-1287.87,0.0001989,2]
[359807561,1746355854915,-44140.72,0.0001989,2]
[359807563,1746355854925,-450.0,0.0001989,2]
[359807565,1746355854937,-917.14,0.0001989,2]
[359807567,1746355854946,-727.24,0.0001989,2]
[359807569,1746355854956,-450.0,0.0001989,2]
[359807571,1746355854967,-1075.09,0.0001989,2]
[359807573,1746355854977,-450.0,0.0001989,2]
[359807575,1746355854987,-2972.38,0.0001989,2]
[359807576,1746355854996,-450.0,0.0001989,2]
[359807578,1746355855006,-13800.62,0.0001989,2]
[359807580,1746355855015,-499.4342074,0.0001989,2]
[359807582,1746355855025,-661.73,0.0001989,2]
[359807584,1746355855038,-450.0,0.0001989,2]
[359807586,1746355855048,-150.22099074,0.0001989,2]
[359807588,1746355855058,-924.83,0.0001989,2]
[359807590,1746355855068,-450.0,0.0001989,2]
[359807592,1746355855078,-558.38,0.0001989,2]
[359807594,1746355855088,-450.0,0.0001989,2]
[359807596,1746355855098,-7999.47,0.0001989,2]
[359807598,1746355855107,-450.0,0.0001989,2]
[359807599,1746355855116,-450.0,0.0001989,2]
[359807600,1746355855125,-450.0,0.0001989,2]
[359807601,1746355855134,-450.0,0.0001989,2]
[359807602,1746355855143,-4120.25,0.0001989,2]
[359807603,1746355855152,-676.36,0.0001989,2]
[359807604,1746355855161,-847.9,0.0001989,2]
[359807605,1746355855171,-3733.45,0.0001989,2]
[359807606,1746355855181,-450.0,0.0001989,2]
[359807607,1746355855190,-450.0,0.0001989,2]
[359807608,1746355855199,-62907.88,0.0001989,2]
[359807609,1746355855208,-450.0,0.0001989,2]
[359807610,1746355855217,-1209.63,0.0001989,2]
[359807612,1746355855226,-450.0,0.0001989,2]
[359807614,1746355855235,-450.0,0.0001989,2]
[359807616,1746355855244,-450.0,0.0001989,2]
[359807618,1746355855253,-450.0,0.0001989,2]
[359807620,1746355855262,-450.0,0.0001989,2]
[359807622,1746355855271,-450.0,0.0001989,2]
[359807624,1746355855281,-450.0,0.0001989,2]
[359807626,1746355855290,-268.52922541,0.0001989,2]
[359807628,1746355855300,-1247.86,0.0001989,2]
[359807630,1746355855309,-159.0,0.0001989,2]
[359807631,1746355855318,-450.0,0.0001989,2]
[359807633,1746355855328,-474.2,0.0001989,2]
[359807635,1746355855337,-450.0,0.0001989,2]
[359807637,1746355855346,-3056.43,0.0001989,2]
[359807639,1746355855355,-450.0,0.0001989,2]
[359807641,1746355855364,-466.26,0.0001989,2]
[359807643,1746355855373,-450.0,0.0001989,2]
[359807645,1746355855382,-522.27,0.0001989,2]
[359807647,1746355855391,-1077.58,0.0001989,2]
[359807649,1746355855400,-500.0,0.0001989,2]
[359807651,1746355855409,-12500.0,0.00019891,2]
[359807653,1746355855418,-12500.0,0.00019891,2]
[359807655,1746355855427,-500.0,0.00019899,2]
[359807657,1746355855436,-500.0,0.00019899,2]
[359807659,1746355855445,-11985.50154226,0.000199,2]
[359807661,1746355855454,-12500.0,0.000199,2]
[359807663,1746355855463,-104738.82013559,0.000199,2]
[359807665,1746355855473,-153.466529,0.000199,2]
[359807667,1746355855482,-12500.0,0.000199,2]
[359807669,1746355855491,-220.02322943,0.000199,2]
[359807671,1746355855502,-12500.0,0.000199,2]
[359807673,1746355855511,-162.26,0.000199,2]
[359807675,1746355855520,-150.0,0.000199,2]
[359807676,1746355855529,-903.3,0.000199,2]
[359807677,1746355855538,-1603.56,0.000199,2]
[359807678,1746355855547,-456.22,0.000199,2]
[359807679,1746355855557,-352.11,0.000199,2]
[359807680,1746355855566,-1154.02,0.000199,2]
[359807681,1746355855575,-150.0,0.000199,2]
[359807682,1746355855583,-150.0,0.000199,2]
[359807683,1746355855593,-162.26,0.000199,2]
[359807684,1746355855603,-802.02,0.000199,2]
[359807685,1746355855612,-467.85,0.000199,2]
[359807686,1746355855621,-150.0,0.000199,2]
[359807687,1746355855630,-451.65,0.000199,2]
[359807688,1746355855640,-160.17,0.000199,2]
[359807689,1746355855649,-352.11,0.000199,2]
[359807690,1746355855659,-238.03446017,0.000199,2]
[359807691,1746355855668,-451.65,0.000199,2]
[359807692,1746355855678,-162.26,0.000199,2]
[359807693,1746355855687,-150.0,0.000199,2]
[359807694,1746355855697,-456.22,0.000199,2]
[359807696,1746355855706,-352.11,0.000199,2]
[359807698,1746355855716,-1154.02,0.000199,2]
[359807700,1746355855725,-150.0,0.000199,2]
[359807702,1746355855734,-303.45,0.000199,2]
[359807704,1746355855743,-902.31,0.000199,2]
[359807706,1746355855752,-162.26,0.000199,2]
[359807708,1746355855762,-1308.79,0.000199,2]
[359807710,1746355855771,-456.36,0.000199,2]
[359807711,1746355855781,-352.11,0.000199,2]
[359807712,1746355855791,-150.0,0.000199,2]
[359807713,1746355855801,-2258.47980791,0.000199,2]
[359807714,1746355855810,-1154.37,0.000199,2]
[359807716,1746355855819,-150.0,0.000199,2]
[359807718,1746355855830,-451.54,0.000199,2]
[359807720,1746355855839,-150.0,0.000199,2]
[359807722,1746355855849,-294.14,0.000199,2]
[359807724,1746355855859,-3585.44872263,0.000199,2]
[359807726,1746355855868,-150.0,0.000199,2]
[359807729,1746355855879,-351.92,0.000199,2]
[359807731,1746355855888,-162.26,0.000199,2]
[359807733,1746355855902,-801.78,0.000199,2]
[359807735,1746355855911,-456.22,0.000199,2]
[359807736,1746355855921,-297.27,0.000199,2]
[359807738,1746355855930,-301.18,0.000199,2]
[359807740,1746355855941,-1493.69,0.000199,2]
[359807742,1746355855951,-280.56,0.000199,2]
[359807745,1746355855960,-451.75,0.000199,2]
[359807747,1746355855972,-801.78,0.000199,2]
[359807749,1746355855982,-150.0,0.000199,2]
[359807751,1746355855992,-704.22,0.000199,2]
[359807753,1746355856002,-150.0,0.000199,2]
[359807755,1746355856013,-456.22,0.000199,2]
[359807757,1746355856023,-162.26,0.000199,2]
[359807759,1746355856033,-162.26,0.000199,2]
[359807761,1746355856042,-352.11,0.000199,2]
[359807762,1746355856052,-307.05,0.000199,2]
[359807763,1746355856062,-456.22,0.000199,2]
[359807765,1746355856072,-801.78,0.000199,2]
[359807767,1746355856082,-2308.04,0.000199,2]
[359807769,1746355856091,-162.26,0.000199,2]
[359807770,1746355856101,-300.0,0.000199,2]
[359807771,1746355856111,-150.0,0.000199,2]
[359807772,1746355856124,-801.78,0.000199,2]
[359807773,1746355856135,-451.65,0.000199,2]
[359807774,1746355856145,-456.22,0.000199,2]
[359807775,1746355856156,-150.0,0.000199,2]
[359807776,1746355856166,-352.11,0.000199,2]
[359807777,1746355856176,-300.0,0.000199,2]
[359807778,1746355856186,-10293.21411533,0.000199,2]
[359807779,1746355856197,-203.21344204,0.000199,3]
[359807780,1746355856209,-181.58723497,0.000199,2]
[359807781,1746355856219,-188.30498568,0.000199,2]
[359807782,1746355856228,-2888.3729768,0.000199,2]
[359807783,1746355856238,-1154.02,0.000199,2]
[359807784,1746355856248,-916.39,0.000199,2]
[359807785,1746355856257,-157.03326009,0.000199,2]
[359807786,1746355856267,-324.52,0.000199,2]
[359807787,1746355856276,-150.0,0.000199,2]
[359807788,1746355856285,-300.0,0.000199,2]
[359807789,1746355856295,-150.0,0.000199,2]
[359807790,1746355856305,-456.22,0.000199,2]
[359807791,1746355856315,-352.11,0.000199,2]
[359807792,1746355856325,-801.78,0.000199,2]
[359807793,1746355856334,-190.9,0.000199,2]
[359807794,1746355856343,-150.0,0.000199,2]
[359807795,1746355856353,-151.0,0.000199,2]
[359807796,1746355856364,-150.0,0.00019914,2]
[359807797,1746355856374,-500.0,0.00019916,2]
[359807798,1746355856384,-500.0,0.00019916,2]
[359807799,1746355856396,-151.0,0.00019917,2]
[359807800,1746355856406,-450.0,0.00019917,2]
[359807801,1746355856416,-450.0,0.00019917,2]
[359807802,1746355856428,-450.0,0.00019917,2]
[359807803,1746355856438,-450.0,0.00019917,2]
[359807804,1746355856448,-450.0,0.00019917,2]
[359807805,1746355856458,-450.0,0.00019917,2]
[359807806,1746355856468,-450.0,0.00019917,2]
[359807807,1746355856478,-450.0,0.00019917,2]
[359807808,1746355856488,-450.0,0.00019917,2]
[359807809,1746355856498,-596.15,0.00019917,2]
[359807810,1746355856508,-450.0,0.00019917,2]
[359807811,1746355856517,-450.0,0.00019917,2]
[359807812,1746355856527,-450.0,0.00019917,2]
[359807813,1746355856537,-450.0,0.00019917,2]
[359807814,1746355856547,-393.9794688,0.00019917,2]
[359807815,1746355856557,-595.72,0.00019917,2]
[359807816,1746355856566,-632.67,0.00019917,2]
[359807817,1746355856576,-450.0,0.00019917,2]
[359807818,1746355856585,-608.95,0.00019917,2]
[359807819,1746355856595,-450.0,0.00019917,2]
[359807820,1746355856604,-858.63,0.00019917,2]
[359807821,1746355856615,-450.0,0.00019917,2]
[359807822,1746355856626,-498.02,0.00019917,2]
[359807823,1746355856635,-450.0,0.00019917,2]
[359807824,1746355856644,-450.0,0.00019917,2]
[359807825,1746355856655,-450.0,0.00019917,2]
[359807826,1746355856664,-450.0,0.00019917,2]
[359807827,1746355856675,-450.0,0.00019917,2]
[359807828,1746355856685,-496.42,0.00019917,2]
[359807829,1746355856695,-450.0,0.00019917,2]
[359807830,1746355856704,-450.0,0.00019917,2]
[359807831,1746355856714,-1603.17,0.00019917,2]
[359807832,1746355856724,-450.0,0.00019917,2]
[359807833,1746355856734,-788.57,0.00019917,2]
[359807834,1746355856743,-1371.55,0.00019917,2]
[359807835,1746355856753,-1571.93,0.00019917,2]
[359807836,1746355856762,-450.0,0.00019917,2]
[359807837,1746355856771,-719.89,0.00019917,2]
[359807838,1746355856781,-630.28,0.00019917,2]
[359807839,1746355856791,-368.72876082,0.00019917,2]
[359807840,1746355856801,-450.0,0.00019917,2]
[359807841,1746355856811,-450.0,0.00019917,2]
[359807842,1746355856820,-450.0,0.00019917,2]
[359807843,1746355856830,-151.0,0.00019917,2]
[359807844,1746355856840,-151.0,0.00019917,2]
[359807845,1746355856849,-157.087746,0.00019917,2]
[359807846,1746355856859,-153.217094,0.00019917,2]
[359807847,1746355856869,-162.224957,0.00019917,2]
[359807848,1746355856879,-151.0,0.00019917,2]
[359807849,1746355856891,-151.0,0.00019917,2]
[359807850,1746355856903,-156.963311,0.00019917,2]
[359807851,1746355856913,-151.0,0.00019917,2]
[359807852,1746355856924,-151.0,0.00019917,2]
[359807853,1746355856934,-182.870986,0.00019917,2]
[359807854,1746355856944,-151.0,0.00019917,2]
[359807855,1746355856954,-182.870986,0.00019917,2]
[359807856,1746355856964,-151.0,0.00019917,2]
[359807857,1746355856976,-2725.93,0.00019917,2]
[359807858,1746355856987,-950.85,0.00019917,2]
[359807859,1746355856997,-151.0,0.00019917,2]
[359807860,1746355857010,-450.0,0.00019917,2]
[359807861,1746355857020,-450.0,0.00019917,2]
[359807862,1746355857030,-993.5,0.00019917,2]
[359807863,1746355857040,-151.0,0.00019917,2]
[359807864,1746355857050,-151.0,0.00019917,2]
[359807865,1746355857062,-166.963181,0.00019917,2]
[359807866,1746355857072,-450.0,0.00019917,2]
[359807867,1746355857083,-457.01904925,0.00019917,2]
[359807868,1746355857092,-166.963181,0.00019917,2]
[359807869,1746355857102,-151.0,0.00019917,2]
[359807870,1746355857112,-595.14,0.00019917,2]
[359807871,1746355857122,-721.07,0.00019917,2]
[359807872,1746355857132,-450.0,0.00019917,2]
[359807873,1746355857141,-450.0,0.00019917,2]
[359807874,1746355857151,-581.49,0.00019917,2]
[359807875,1746355857161,-166.672181,0.00019917,2]
[359807876,1746355857171,-151.0,0.00019917,2]
[359807877,1746355857181,-450.0,0.00019917,2]
[359807878,1746355857191,-151.0,0.00019917,2]
[359807879,1746355857200,-2810.17,0.00019917,2]
[359807880,1746355857210,-450.0,0.00019917,2]
[359807881,1746355857220,-450.0,0.00019917,2]
[359807882,1746355857231,-152.286598,0.00019917,2]
[359807883,1746355857241,-1172.8,0.00019917,2]
[359807884,1746355857250,-634.87,0.00019917,2]
[359807885,1746355857259,-450.0,0.00019917,2]
[359807886,1746355857269,-2929.23,0.00019917,2]
[359807887,1746355857279,-151.0,0.00019917,2]
[359807888,1746355857289,-450.0,0.00019917,2]
[359807889,1746355857299,-1939.86,0.00019917,2]
[359807890,1746355857308,-450.0,0.00019917,2]
[359807891,1746355857318,-151.0,0.00019917,2]
[359807892,1746355857328,-154.18132,0.00019917,2]
[359807893,1746355857338,-450.0,0.00019917,2]
[359807894,1746355857348,-450.0,0.00019917,2]
[359807895,1746355857359,-916.0,0.00019917,2]
[359807896,1746355857368,-450.0,0.00019917,2]
[359807897,1746355857378,-618.36,0.00019917,2]
[359807898,1746355857387,-450.0,0.00019917,2]
[359807899,1746355857397,-450.0,0.00019917,2]
[359807900,1746355857407,-2335.21,0.00019917,2]
[359807901,1746355857416,-450.0,0.00019917,2]
[359807902,1746355857428,-1287.87,0.00019917,2]
[359807903,1746355857438,-44140.72,0.00019917,2]
[359807904,1746355857448,-450.0,0.00019917,2]
[359807905,1746355857458,-917.14,0.00019917,2]
[359807906,1746355857468,-727.24,0.00019917,2]
[359807907,1746355857477,-450.0,0.00019917,2]
[359807908,1746355857487,-1075.09,0.00019917,2]
[359807909,1746355857497,-190.148114,0.00019917,2]
[359807910,1746355857507,-151.0,0.00019917,2]
[359807911,1746355857516,-450.0,0.00019917,2]
[359807912,1746355857527,-2972.38,0.00019917,2]
[359807913,1746355857537,-450.0,0.00019917,2]
[359807914,1746355857548,-13800.62,0.00019917,2]
[359807915,1746355857557,-360.04028,0.00019917,2]
[359807916,1746355857567,-661.73,0.00019917,2]
[359807917,1746355857577,-450.0,0.00019917,2]
[359807918,1746355857586,-360.04028,0.00019917,2]
[359807919,1746355857598,-924.83,0.00019917,2]
[359807920,1746355857607,-450.0,0.00019917,2]
[359807921,1746355857618,-558.38,0.00019917,2]
[359807922,1746355857629,-450.0,0.00019917,2]
[359807923,1746355857640,-7999.47,0.00019917,2]
[359807924,1746355857650,-151.0,0.00019917,2]
[359807925,1746355857661,-450.0,0.00019917,2]
[359807926,1746355857671,-450.0,0.00019917,2]
[359807927,1746355857681,-151.0,0.00019917,2]
[359807928,1746355857691,-151.0,0.00019917,2]
[359807929,1746355857701,-450.0,0.00019917,2]
[359807930,1746355857711,-151.0,0.00019917,2]
[359807931,1746355857721,-450.0,0.00019917,2]
[359807932,1746355857731,-151.0,0.00019917,2]
[359807933,1746355857741,-151.0,0.00019917,2]
[359807934,1746355857751,-4120.25,0.00019917,2]
[359807935,1746355857761,-151.0,0.00019917,2]
[359807936,1746355857771,-676.36,0.00019917,2]
[359807937,1746355857780,-847.9,0.00019917,2]
[359807938,1746355857790,-151.0,0.00019917,2]
[359807939,1746355857800,-151.0,0.00019917,2]
[359807940,1746355857810,-156.583782,0.00019917,2]
[359807941,1746355857820,-3733.45,0.00019917,2]
[359807942,1746355857830,-151.0,0.00019917,2]
[359807943,1746355857840,-450.0,0.00019917,2]
[359807944,1746355857850,-151.0,0.00019917,2]
[359807945,1746355857861,-450.0,0.00019917,2]
[359807946,1746355857871,-151.0,0.00019917,2]
[359807947,1746355857881,-151.0,0.00019917,2]
[359807948,1746355857894,-62907.88,0.00019917,2]
[359807949,1746355857904,-192.271919,0.00019917,2]
[359807950,1746355857915,-450.0,0.00019917,2]
[359807951,1746355858116,-151.0,0.00019917,2]
[359807952,1746355858131,-1209.63,0.00019917,2]
[359807953,1746355858141,-450.0,0.00019917,2]
[359807954,1746355858151,-450.0,0.00019917,2]
[359807955,1746355858161,-151.0,0.00019917,2]
[359807956,1746355858171,-450.0,0.00019917,2]
[359807957,1746355858181,-450.0,0.00019917,2]
[359807958,1746355858190,-450.0,0.00019917,2]
[359807959,1746355858199,-450.0,0.00019917,2]
[359807960,1746355858209,-160.010043,0.00019917,2]
[359807961,1746355858218,-450.0,0.00019917,2]
[359807962,1746355858228,-1247.86,0.00019917,2]
[359807963,1746355858237,-474.2,0.00019917,2]
[359807964,1746355858247,-450.0,0.00019917,2]
[359807965,1746355858256,-151.0,0.00019917,2]
[359807966,1746355858266,-450.0,0.00019917,2]
[359807967,1746355858275,-3056.43,0.00019917,2]
[359807968,1746355858285,-151.0,0.00019917,2]
[359807969,1746355858295,-450.0,0.00019917,2]
[359807970,1746355858305,-466.26,0.00019917,2]
[359807971,1746355858315,-450.0,0.00019917,2]
[359807972,1746355858325,-522.27,0.00019917,2]
[359807973,1746355858335,-1077.58,0.00019917,2]
[359807974,1746355858344,-183.93,0.00019918,7]
[359807975,1746355858354,-188.30498568,0.00019927,2]
[359807976,1746355858363,-2888.37297679,0.00019927,2]
[359807977,1746355858373,-500.0,0.00019944,2]
[359807978,1746355858383,-450.0,0.00019945,2]
[359807979,1746355858392,-450.0,0.00019945,2]
[359807980,1746355858401,-450.0,0.00019945,2]
[359807981,1746355858410,-450.0,0.00019945,2]
[359807982,1746355858420,-450.0,0.00019945,2]
[359807983,1746355858429,-450.0,0.00019945,2]
[359807984,1746355858439,-450.0,0.00019945,2]
[359807985,1746355858448,-450.0,0.00019945,2]
[359807986,1746355858457,-450.0,0.00019945,2]
[359807987,1746355858467,-596.15,0.00019945,2]
[359807988,1746355858477,-450.0,0.00019945,2]
[359807989,1746355858487,-450.0,0.00019945,2]
[359807990,1746355858496,-450.0,0.00019945,2]
[359807991,1746355858506,-450.0,0.00019945,2]
[359807992,1746355858515,-595.72,0.00019945,2]
[359807993,1746355858525,-632.67,0.00019945,2]
[359807994,1746355858534,-450.0,0.00019945,2]
[359807995,1746355858544,-608.95,0.00019945,2]
[359807996,1746355858553,-450.0,0.00019945,2]
[359807997,1746355858563,-858.63,0.00019945,2]
[359807998,1746355858572,-450.0,0.00019945,2]
[359807999,1746355858582,-498.02,0.00019945,2]
[359808000,1746355858591,-450.0,0.00019945,2]
[359808001,1746355858601,-450.0,0.00019945,2]
[359808002,1746355858610,-450.0,0.00019945,2]
[359808003,1746355858619,-450.0,0.00019945,2]
[359808004,1746355858629,-151.0,0.00019945,2]
[359808005,1746355858638,-450.0,0.00019945,2]
[359808006,1746355858647,-496.42,0.00019945,2]
[359808007,1746355858656,-151.0,0.00019945,2]
[359808008,1746355858666,-450.0,0.00019945,2]
[359808009,1746355858676,-151.0,0.00019945,2]
[359808010,1746355858685,-158.985844,0.00019945,2]
[359808011,1746355858695,-450.0,0.00019945,2]
[359808012,1746355858704,-1603.17,0.00019945,2]
[359808013,1746355858714,-450.0,0.00019945,2]
[359808014,1746355858724,-788.57,0.00019945,2]
[359808015,1746355858733,-151.0,0.00019945,2]
[359808016,1746355858742,-1371.55,0.00019945,2]